fUST/lending_fUST_20250713
["ID","MTS","AMOUNT","RATE_DAILY","PERIOD"]
[371749377,1752415840368,-460.0,0.00016438,2]
[371749379,1752415840377,-321.48983617,0.00016438,2]
[371749577,1752415842937,-138.51016383,0.00016438,2]
[371749578,1752415842948,-285.38395781,0.00016438,2]
[371749579,1752415842991,-174.61604219,0.00016438,2]
[371749580,1752415843001,-155.38312816,0.00016438,2]
[371749581,1752415843103,-304.61687184,0.00016438,2]
[371749582,1752415843113,-460.0,0.00016438,2]
[371749583,1752415843124,-310.87177511,0.00016438,2]
[371749584,1752415843137,-149.12822489,0.00016438,2]
[371749585,1752415843146,-460.0,0.00016438,2]
[371749586,1752415843156,-567.19,0.00016438,2]
[371749588,1752415843166,-460.0,0.00016438,2]
[371749589,1752415843176,-460.0,0.00016438,2]
[371749590,1752415843186,-460.0,0.00016438,2]
[371749591,1752415843197,-208.18,0.00016438,2]
[371749592,1752415843207,-460.0,0.00016438,2]
[371749593,1752415843217,-460.0,0.00016438,2]
[371749594,1752415843226,-445.7190445,0.00016438,2]
[371749595,1752415843236,-460.0,0.00016438,2]
[371749596,1752415843246,-460.0,0.00016438,2]
[371749597,1752415843256,-460.0,0.00016438,2]
[371749598,1752415843265,-460.0,0.00016438,2]
[371749599,1752415843275,-460.0,0.00016438,2]
[371749600,1752415843285,-460.0,0.00016438,2]
[371749601,1752415843294,-460.0,0.00016438,2]
[371749602,1752415843304,-285.73,0.00016438,2]
[371749603,1752415843313,-460.0,0.00016438,2]
[371749604,1752415843323,-460.0,0.00016438,2]
[371749605,1752415843332,-460.0,0.00016438,2]
[371749606,1752415843342,-460.0,0.00016438,2]
[371749607,1752415843351,-460.0,0.00016438,2]
[371749608,1752415843360,-570.8,0.00016438,2]
[371749609,1752415843370,-460.0,0.00016438,2]
[371749610,1752415843379,-460.0,0.00016438,2]
[371749611,1752415843389,-500.0,0.00016473,2]
[371749612,1752415843399,-503.24985721,0.00016473,2]
[371749613,1752415843408,-500.0,0.00016473,2]
[371749614,1752415843418,-326.39071524,0.00016473,2]
[371749615,1752415843427,-190.76579792,0.00016711,2]
[371749616,1752415843437,-500.0,0.00016711,2]
[371749617,1752415843448,-500.0,0.00016711,2]
[371749618,1752415843458,-500.0,0.00016711,2]
[371749619,1752415843467,-500.0,0.00016711,2]
[371749620,1752415843477,-500.0,0.00016711,2]
[371749621,1752415843486,-500.0,0.00016711,2]
[371749622,1752415843495,-500.0,0.00016711,2]
[371749623,1752415843505,-556.08518985,0.00016711,2]
[371749624,1752415843515,-500.0,0.00016711,2]
[371749625,1752415843524,-500.0,0.00016711,2]
[371749626,1752415843542,-500.0,0.00016711,2]
[371749627,1752415843553,-500.0,0.00016711,2]
[371749628,1752415843562,-500.0,0.00016711,2]
[371749629,1752415843572,-500.0,0.00016711,2]
[371749631,1752415843583,-30.25387667,0.00016711,2]
[371749642,1752415845891,-469.74612333,0.00016711,2]
[371749643,1752415845902,-231.51897162,0.00016711,2]
[371749644,1752415845911,-500.0,0.00016711,2]
[371749645,1752415845921,-500.0,0.00016711,2]
[371749646,1752415845930,-315.46878938,0.00016711,2]
[371749647,1752415845940,-500.0,0.00016711,2]
[371749648,1752415845950,-500.0,0.00016711,2]
[371749649,1752415845959,-500.0,0.00016711,2]
[371749650,1752415845969,-500.0,0.00016711,2]
[371749651,1752415845978,-500.0,0.00016711,2]
[371749652,1752415845988,-500.0,0.00016711,2]
[371749653,1752415845997,-500.0,0.00016711,2]
[371749654,1752415846007,-500.0,0.00016711,2]
[371749655,1752415846016,-500.0,0.00016711,2]
[371749656,1752415846026,-278.75929155,0.00016712,2]
[371749660,1752415846194,-181.24070845,0.00016712,2]
[371749661,1752415846205,-460.0,0.00016712,2]
[371749662,1752415846215,-460.0,0.00016712,2]
[371749663,1752415846224,-460.0,0.00016712,2]
[371749664,1752415846234,-460.0,0.00016712,2]
[371749665,1752415846243,-460.0,0.00016712,2]
[371749666,1752415846253,-460.0,0.00016712,2]
[371749667,1752415846262,-364.13230048,0.00016712,2]
[371749670,1752415846279,-95.86769952,0.00016712,2]
[371749672,1752415846288,-189.59385818,0.00016712,2]
[371749673,1752415846300,-270.40614182,0.00016712,2]
[371749674,1752415846310,-460.0,0.00016712,2]
[371749675,1752415846319,-460.0,0.00016712,2]
[371749676,1752415846329,-510.04701595,0.00016712,2]
[371749677,1752415846339,-460.0,0.00016712,2]
[371749678,1752415846350,-460.0,0.00016712,2]
[371749679,1752415846360,-460.0,0.00016712,2]
[371749680,1752415846369,-460.0,0.00016712,2]
[371749681,1752415846379,-415.34,0.00016712,2]
[371749682,1752415846388,-367.2691143,0.00016712,2]
[371749683,1752415846400,-92.7308857,0.00016712,2]
[371749684,1752415846410,-460.0,0.00016712,2]
[371749685,1752415846419,-460.0,0.00016712,2]
[371749686,1752415846429,-460.0,0.00016712,2]
[371749687,1752415846439,-460.0,0.00016712,2]
[371749688,1752415846450,-460.0,0.00016712,2]
[371749689,1752415846459,-460.0,0.00016712,2]
[371749690,1752415846469,-460.0,0.00016712,2]
[371749691,1752415846478,-460.0,0.00016712,2]
[371749692,1752415846487,-460.0,0.00016712,2]
[371749693,1752415846498,-460.0,0.00016712,2]
[371749694,1752415846507,-460.0,0.00016712,2]
[371749695,1752415846516,-460.0,0.00016712,2]
[371749696,1752415846526,-460.0,0.00016712,2]
[371749697,1752415846538,-460.0,0.00016712,2]
[371749698,1752415846547,-460.0,0.00016712,2]
[371749699,1752415846557,-355.88784711,0.00016712,2]
[371749700,1752415846567,-460.0,0.00016712,2]
[371749701,1752415846577,-460.0,0.00016712,2]
[371749702,1752415846586,-460.0,0.00016712,2]
[371749703,1752415846596,-460.0,0.00016712,2]
[371749704,1752415846607,-460.0,0.00016712,2]
[371749705,1752415846616,-460.0,0.00016712,2]
[371749706,1752415846625,-460.0,0.00016712,2]
[371749707,1752415846635,-190.95752691,0.00016712,2]
[371749708,1752415846644,-460.0,0.00016712,2]
[371749709,1752415846654,-460.0,0.00016712,2]
[371749710,1752415846663,-460.0,0.00016712,2]
[371749711,1752415846673,-460.0,0.00016712,2]
[371749712,1752415846682,-460.0,0.00016712,2]
[371749713,1752415846691,-460.0,0.00016712,2]
[371749714,1752415846701,-202.80415302,0.00016712,2]
[371749716,1752415889814,-151.0,0.00021754,5]
[371749717,1752415889855,-151.0,0.00022279,5]
[371749718,1752415889895,-151.0,0.00022739,7]
[371749719,1752415889932,-151.0,0.00022739,7]
[371749720,1752415889970,-522.02,0.00022748,7]
[371749721,1752415890009,-1150.4,0.000228,7]
[371749722,1752415890048,-151.0,0.00022803,6]
[371749723,1752415890085,-522.02,0.00022948,6]
[371749724,1752415890122,-522.02,0.00023048,6]
[371749725,1752415890158,-522.02,0.00023148,7]
[371749726,1752415890195,-522.02,0.00023248,7]
[371749727,1752415890233,-151.0,0.00023327,6]
[371749728,1752415890272,-522.02,0.00023348,7]
[371749729,1752415890311,-7405.31353199,0.000234,7]
[371749730,1752415890348,-151.0,0.000234,7]
[371749731,1752415890384,-12598.31844336,0.000234,7]
[371749732,1752415890421,-311.430858,0.000235,7]
[371749733,1752415890465,-311.430858,0.000235,7]
[371749734,1752415890514,-171.008502,0.000235,7]
[371749735,1752415890565,-522.02,0.00023548,7]
[371749736,1752415890611,-151.0,0.00023626,7]
[371749737,1752415890657,-151.0,0.00023626,7]
[371749738,1752415890703,-2579.16,0.00023626,5]
[371749739,1752415890747,-522.02,0.00023648,6]
[371749740,1752415890794,-151.0,0.000237,7]
[371749741,1752415890837,-2559.71,0.000237,7]
[371749742,1752415890885,-2579.16,0.00023726,7]
[371749743,1752415890931,-522.02,0.00023748,7]
[371749744,1752415890977,-2579.16,0.00023826,7]
[371749745,1752415891022,-522.02,0.00023848,7]
[371749746,1752415891063,-151.0,0.00023851,6]
[371749747,1752415891107,-555.99892153,0.000239,7]
[371749748,1752415891154,-2579.16,0.00023926,7]
[371749749,1752415891199,-151.0,0.0002399,7]
[371749750,1752415891247,-151.0,0.0002399,7]
[371749751,1752415891293,-151.0,0.0002399,7]
[371749752,1752415891339,-392.302373,0.0002399,7]
[371749753,1752415891380,-392.302373,0.0002399,7]
[371749754,1752415891424,-151.0,0.0002399,7]
[371749755,1752415891471,-151.0,0.0002399,7]
[371749756,1752415891513,-151.0,0.0002399,7]
[371749757,1752415891555,-151.0,0.0002399,7]
[371749758,1752415891598,-160.0,0.00024,7]
[371749759,1752415891642,-838.53376533,0.00024,7]
[371749760,1752415891682,-160.0,0.00024,7]
[371749761,1752415891729,-230.68503973,0.00024,7]
[371749762,1752415891779,-522.02,0.00024048,7]
[371749763,1752415891824,-522.02,0.00024148,5]
[371749764,1752415891868,-522.02,0.00024248,7]
[371749765,1752415891912,-522.20303901,0.00024348,6]
[371749766,1752415891954,-151.0,0.00024376,7]
[371749767,1752415891996,-2579.16,0.00024426,5]
[371749768,1752415892039,-2579.16,0.00024526,7]
[371749769,1752415892081,-2579.16,0.00024626,6]
[371749770,1752415892125,-151.0,0.00024651,7]
[371749771,1752415892168,-151.0,0.00024651,7]
[371749772,1752415892215,-151.0,0.00024651,7]
[371749773,1752415892260,-151.0,0.00024651,7]
[371749774,1752415892302,-2579.16,0.00024726,7]
[371749775,1752415892344,-151.0,0.00024826,7]
[371749776,1752415892386,-2579.16,0.00024826,7]
[371749777,1752415892427,-151.0,0.00024899,7]
[371749778,1752415892470,-151.0,0.000249,7]
[371749779,1752415892514,-151.0,0.000249,7]
[371749780,1752415892553,-151.0,0.000249,7]
[371749781,1752415892591,-151.0,0.000249,7]
[371749782,1752415892631,-151.0,0.000249,7]
[371749783,1752415892670,-151.0,0.000249,7]
[371749784,1752415892709,-151.0,0.000249,7]
[371749785,1752415892923,-314.00247,0.000249,7]
[371749786,1752415892968,-314.00247,0.000249,7]
[371749787,1752415893005,-151.0,0.000249,7]
[371749788,1752415893044,-151.0,0.000249,7]
[371749789,1752415893083,-240.524289,0.000249,7]
[371749790,1752415893123,-240.524289,0.000249,7]
[371749791,1752415893163,-156.981728,0.000249,7]
[371749792,1752415893206,-151.0,0.000249,7]
[371749793,1752415893247,-151.0,0.000249,7]
[371749794,1752415893288,-151.0,0.000249,7]
[371749795,1752415893327,-151.0,0.000249,7]
[371749796,1752415893366,-151.0,0.000249,7]
[371749797,1752415893403,-151.0,0.000249,7]
[371749798,1752415893441,-151.0,0.000249,7]
[371749799,1752415893480,-311.430858,0.000249,7]
[371749800,1752415893518,-311.430858,0.000249,7]
[371749801,1752415893558,-151.0,0.000249,7]
[371749802,1752415893599,-151.0,0.000249,7]
[371749803,1752415893639,-151.0,0.000249,7]
[371749804,1752415893678,-151.0,0.000249,7]
[371749805,1752415893716,-151.0,0.000249,7]
[371749806,1752415893755,-151.0,0.000249,7]
[371749807,1752415893800,-151.412107,0.000249,7]
[371749808,1752415893839,-229.135018,0.000249,7]
[371749809,1752415893880,-229.135018,0.000249,7]
[371749810,1752415893920,-151.0,0.000249,7]
[371749811,1752415893960,-151.0,0.000249,7]
[371749812,1752415894001,-153.202931,0.000249,7]
[371749813,1752415894043,-2579.16,0.00024926,5]
[371749814,1752415894086,-1000.0,0.00024999,7]
[371749815,1752415894126,-1576.62662444,0.00024999,7]
[371749816,1752415894168,-220.0,0.00025,9]
[371749817,1752415894210,-9000.0,0.00025,5]
[371749818,1752415894249,-151.0,0.00025,7]
[371749819,1752415894288,-151.0,0.00025,7]
[371749820,1752415894328,-151.0,0.00025,7]
[371749821,1752415894367,-151.0,0.00025,7]
[371749822,1752415894404,-151.0,0.00025,7]
[371749823,1752415894441,-151.0,0.00025,7]
[371749824,1752415894479,-151.0,0.00025,7]
[371749825,1752415894513,-151.0,0.00025,7]
[371749826,1752415894551,-151.0,0.00025,7]
[371749827,1752415894587,-151.0,0.00025,7]
[371749828,1752415894624,-230.527007,0.00025,7]
[371749829,1752415894662,-151.0,0.00025,7]
[371749830,1752415894700,-151.0,0.00025,7]
[371749831,1752415894736,-153.532539,0.00025,7]
[371749832,1752415894776,-151.0,0.00025,7]
[371749833,1752415894814,-151.0,0.00025,7]
[371749834,1752415894854,-151.0,0.00025,7]
[371749835,1752415894892,-265.6395,0.00025,7]
[371749836,1752415894930,-151.0,0.00025,7]
[371749837,1752415894969,-151.0,0.00025,7]
[371749838,1752415895008,-151.0,0.00025,7]
[371749839,1752415895044,-151.0,0.00025,7]
[371749840,1752415895082,-151.0,0.00025,7]
[371749841,1752415895121,-151.0,0.00025,7]
[371749842,1752415895159,-151.0,0.00025,7]
[371749843,1752415895198,-151.0,0.00025,7]
[371749844,1752415895238,-292.34836,0.00025,7]
[371749845,1752415895280,-151.0,0.00025,7]
[371749846,1752415895321,-151.0,0.00025,7]
[371749847,1752415895361,-151.0,0.00025,7]
[371749848,1752415895400,-151.0,0.00025,7]
[371749849,1752415895440,-314.00247,0.00025,7]
[371749850,1752415895480,-314.00247,0.00025,7]
[371749851,1752415895520,-314.00247,0.00025,7]
[371749852,1752415895560,-314.00247,0.00025,7]
[371749853,1752415895601,-151.0,0.00025,7]
[371749854,1752415895641,-151.0,0.00025,7]
[371749855,1752415895680,-240.524289,0.00025,7]
[371749856,1752415895722,-240.524289,0.00025,7]
[371749857,1752415895764,-240.524289,0.00025,7]
[371749858,1752415895805,-240.524289,0.00025,7]
[371749859,1752415895844,-240.524289,0.00025,7]
[371749860,1752415895883,-240.524289,0.00025,7]
[371749861,1752415895924,-392.302373,0.00025,7]
[371749862,1752415895968,-392.302373,0.00025,7]
[371749863,1752415896011,-392.302373,0.00025,7]
[371749864,1752415896052,-392.302373,0.00025,7]
[371749865,1752415896092,-392.302373,0.00025,7]
[371749866,1752415896134,-392.302373,0.00025,7]
[371749867,1752415896174,-151.0,0.00025,7]
[371749868,1752415896214,-151.0,0.00025,7]
[371749869,1752415896255,-151.0,0.00025,7]
[371749870,1752415896294,-182.733012,0.00025,7]
[371749871,1752415896335,-151.0,0.00025,7]
[371749872,1752415896375,-151.0,0.00025,7]
[371749873,1752415896415,-151.0,0.00025,7]
[371749874,1752415896551,-151.0,0.00025,7]
[371749875,1752415896590,-151.0,0.00025,7]
[371749876,1752415896630,-151.0,0.00025,7]
[371749877,1752415896668,-151.0,0.00025,7]
[371749878,1752415896707,-151.0,0.00025,7]
[371749879,1752415896748,-151.0,0.00025,7]
[371749880,1752415896787,-151.0,0.00025,7]
[371749881,1752415896827,-151.0,0.00025,7]
[371749882,1752415896865,-270.349977,0.00025,7]
[371749883,1752415896904,-151.0,0.00025,7]
[371749884,1752415896944,-151.0,0.00025,7]
[371749885,1752415896984,-311.430858,0.00025,7]
[371749886,1752415897025,-311.430858,0.00025,7]
[371749887,1752415897064,-311.430858,0.00025,7]
[371749888,1752415897107,-311.430858,0.00025,7]
[371749889,1752415897149,-151.0,0.00025,7]
[371749890,1752415897190,-176.654513,0.00025,7]
[371749891,1752415897231,-151.0,0.00025,7]
[371749892,1752415897273,-151.0,0.00025,7]
[371749893,1752415897313,-151.0,0.00025,7]
[371749894,1752415897352,-151.0,0.00025,7]
[371749895,1752415897391,-152.061492,0.00025,7]
[371749896,1752415897429,-240.431289,0.00025,7]
[371749897,1752415897468,-240.431289,0.00025,7]
[371749898,1752415897506,-161.874871,0.00025,7]
[371749899,1752415897547,-151.0,0.00025,7]
[371749900,1752415897585,-151.0,0.00025,7]
[371749901,1752415897624,-229.135018,0.00025,7]
[371749902,1752415897664,-229.135018,0.00025,7]
[371749903,1752415897703,-151.0,0.00025,7]
[371749904,1752415897741,-151.0,0.00025,7]
[371749905,1752415919096,151.0,0.000249,7]
[371749906,1752415919531,151.0,0.00025,7]
[371749907,1752415959334,1035.36,0.000222,7]
[371749908,1752415959954,1035.36,0.000249,7]
[371749910,1752415984516,151.0,0.00022739,7]
[371749911,1752415985192,151.0,0.000249,7]
[371749912,1752415985677,151.0,0.00025,7]
[371749913,1752415986479,151.0,0.00025,7]
[371749914,1752415987615,2303.74,0.000221,7]
[371749915,1752415988223,2303.74,0.000248,7]
[371749916,1752416022254,162.61724584,0.00021486,5]
[371749917,1752416022355,162.61724584,0.00021762,5]
[371749918,1752416022432,162.61724584,0.00022038,6]
[371749919,1752416022587,162.61724584,0.00022314,7]
[371749920,1752416022672,162.61724584,0.0002259,7]
[371749921,1752416022758,162.61724584,0.00022866,8]
[371749922,1752416022837,162.61724584,0.00023141,8]
[371749923,1752416022928,162.61724584,0.00023417,9]
[371749924,1752416023013,162.61724584,0.00023693,9]
[371749925,1752416023112,162.61724584,0.00023969,10]
[371749926,1752416023215,162.61724584,0.00024245,10]
[371749927,1752416023318,162.61724584,0.00024521,11]
[371749928,1752416023429,162.61724584,0.00024797,11]
[371749929,1752416023679,151.0,0.00025,7]
[371749930,1752416053383,151.0,0.000249,7]
[371749931,1752416053837,151.0,0.000249,7]
[371749932,1752416054257,151.0,0.00025,7]
[371749933,1752416061136,229.429556,0.000249,7]
[371749934,1752416088467,151.0,0.000249,7]
[371749935,1752416103789,992.63,0.00024,7]
[371749936,1752416125711,151.0,0.00025,7]
[371749937,1752416153499,151.0,0.000249,7]
[371749938,1752416153640,151.0,0.00024372,7]
[371749939,1752416153842,151.0,0.00023843,6]
[371749942,1752416178758,151.0,0.000249,7]
[371749943,1752416179346,151.0,0.00025,7]
[371749944,1752416185549,151.0,0.000249,7]
[371749945,1752416186027,235.65482,0.00025,7]
[371749946,1752416188177,2162.96,0.000242,7]
[371749947,1752416228442,151.0,0.00022739,7]
[371749948,1752416228791,151.0,0.000249,7]
[371749949,1752416229302,151.0,0.00025,7]
[371749950,1752416229774,151.0,0.00025,7]
[371749951,1752416233662,157.001235,0.00024651,7]
[371749952,1752416234414,157.001235,0.000249,7]
[371749953,1752416234923,157.001235,0.00025,7]
[371749954,1752416235531,157.001235,0.00025,7]
[371749955,1752416238813,157.001235,0.00024651,7]
[371749956,1752416239258,157.001235,0.000249,7]
[371749957,1752416239785,157.001235,0.00025,7]
[371749958,1752416240273,157.001235,0.00025,7]
[371749959,1752416245219,151.655014,0.00022739,7]
[371749960,1752416249235,893.36,0.000246,7]
[371749963,1752416310281,449.722667,0.00013699,2]
[371749964,1752416333777,206.745078,0.00024651,7]
[371749965,1752416334174,206.745078,0.000249,7]
[371749966,1752416334602,206.745078,0.00025,7]
[371749967,1752416335287,206.745078,0.00025,7]
[371749968,1752416339570,206.745078,0.00024651,7]
[371749969,1752416339950,206.745078,0.000249,7]
[371749970,1752416340361,206.745078,0.00025,7]
[371749971,1752416340479,239.98842604,0.00021555,5]
[371749972,1752416340607,239.98842604,0.00021866,6]
[371749973,1752416340698,239.98842604,0.00022176,6]
[371749974,1752416340763,206.745078,0.00025,7]
[371749975,1752416340833,239.98842604,0.00022486,7]
[371749976,1752416340923,239.98842604,0.00022797,7]
[371749977,1752416341029,239.98842604,0.00023107,8]
[371749978,1752416341138,239.98842604,0.00023417,9]
[371749979,1752416341243,239.98842604,0.00023728,9]
[371749980,1752416341431,239.98842604,0.00024038,10]
[371749981,1752416341514,239.98842604,0.00024348,11]
[371749982,1752416341628,239.98842604,0.00024659,11]
[371749983,1752416341744,239.98842604,0.00024969,12]
[371749984,1752416389532,1946.66,0.000242,7]
[371749985,1752416391490,804.03,0.000242,7]
[371749991,1752416428930,241.29765746,0.00016238,2]
[371749993,1752416466032,151.0,0.00024651,7]
[371749994,1752416466508,151.0,0.000249,7]
[371749995,1752416467060,151.0,0.00025,7]
[371749996,1752416467534,151.0,0.00025,7]
[371749997,1752416492127,261.03028453,0.00016238,2]
[371749998,1752416514194,371.39320125,0.00021555,5]
[371749999,1752416514280,371.39320125,0.00021866,6]
[371750000,1752416514375,371.39320125,0.00022176,6]
[371750001,1752416514482,371.39320125,0.00022486,7]
[371750002,1752416514558,371.39320125,0.00022797,7]
[371750003,1752416514634,371.39320125,0.00023107,8]
[371750004,1752416514816,371.39320125,0.00023417,9]
[371750005,1752416514855,371.39320125,0.00023728,9]
[371750006,1752416514899,371.39320125,0.00024038,10]
[371750007,1752416515000,371.39320125,0.00024348,11]
[371750008,1752416515117,371.39320125,0.00024659,11]
[371750009,1752416515210,371.39320125,0.00024969,12]
[371750011,1752416533239,151.0,0.00024651,7]
[371750012,1752416533684,255.240182,0.000249,7]
[371750013,1752416534650,723.63,0.000242,7]
[371750014,1752416536235,151.0,0.00024651,7]
[371750015,1752416536703,151.0,0.000249,7]
[371750016,1752416537156,151.0,0.00025,7]
[371750017,1752416538223,151.0,0.00025,7]
[371750018,1752416539387,262.341455,0.00024651,7]
[371750019,1752416539846,262.341455,0.000249,7]
[371750020,1752416540264,262.341455,0.00025,7]
[371750021,1752416540709,262.341455,0.00025,7]
[371750022,1752416543886,262.341455,0.00024651,7]
[371750023,1752416544947,262.341455,0.000249,7]
[371750024,1752416545371,262.341455,0.00025,7]
[371750025,1752416545905,262.341455,0.00025,7]
[371750026,1752416572016,151.0,0.00024651,7]
[371750029,1752416592089,1752.0,0.000242,7]
[371750030,1752416610405,151.864574,0.00022648,7]
[371750031,1752416610947,151.864574,0.000249,7]
[371750032,1752416611537,151.864574,0.00025,7]
[371750033,1752416611899,151.864574,0.00025,7]
[371750034,1752416616787,151.864574,0.00022648,7]
[371750035,1752416617145,151.864574,0.000249,7]
[371750036,1752416617595,151.864574,0.00025,7]
[371750037,1752416617982,151.864574,0.00025,7]
[371750038,1752416624480,151.0,0.00022465,7]
[371750039,1752416624955,151.0,0.00024651,7]
[371750040,1752416625970,263.107575,0.000249,7]
[371750041,1752416670957,222.83592075,0.00021555,5]
[371750042,1752416671043,222.83592075,0.00021866,6]
[371750043,1752416671150,222.83592075,0.00022176,6]
[371750044,1752416671838,151.0,0.00022908,7]
[371750045,1752416672249,151.0,0.000249,7]
[371750046,1752416672770,151.0,0.00025,7]
[371750047,1752416673162,151.0,0.00025,7]
[371750048,1752416673377,222.83592075,0.00022486,7]
[371750049,1752416673490,222.83592075,0.00022797,7]
[371750050,1752416673652,222.83592075,0.00023107,8]
[371750051,1752416673716,222.83592075,0.00023417,9]
[371750052,1752416673803,222.83592075,0.00023728,9]
[371750053,1752416673932,222.83592075,0.00024038,10]
[371750054,1752416674020,222.83592075,0.00024348,11]
[371750055,1752416674318,222.83592075,0.00024659,11]
[371750056,1752416674438,222.83592075,0.00024969,12]
[371750057,1752416680103,651.26,0.000242,7]
[371750058,1752416692238,268.840799,0.00024651,7]
[371750059,1752416692637,268.840799,0.000249,7]
[371750060,1752416692991,268.840799,0.00025,7]
[371750061,1752416693394,268.840799,0.00025,7]
[371750062,1752416699349,268.840799,0.00024651,7]
[371750063,1752416699879,268.840799,0.000249,7]
[371750064,1752416700340,268.840799,0.00025,7]
[371750065,1752416700882,268.840799,0.00025,7]
[371750066,1752416717609,241.39046,0.00022191,7]
[371750072,1752416718266,241.39046,0.00024651,7]
[371750073,1752416718750,241.39046,0.000249,7]
[371750074,1752416731861,241.39046,0.00022191,7]
[371750075,1752416732377,241.39046,0.00024651,7]
[371750076,1752416732938,241.39047,0.000249,7]
[371750078,1752416746067,151.0,0.00022191,7]
[371750079,1752416746628,176.363133,0.00024651,7]
[371750080,1752416753173,550.47547409,0.00016255,2]
[371750081,1752416753198,20000.0,0.00016255,2]
[371750082,1752416753227,20000.0,0.00016255,2]
[371750083,1752416753252,20000.0,0.00016255,2]
[371750084,1752416753276,20000.0,0.00016255,2]
[371750085,1752416753301,20000.0,0.00016255,2]
[371750086,1752416753326,20000.0,0.00016255,2]
[371750087,1752416753351,12321.75261845,0.00016255,2]
[371750095,1752416792104,174.02018969,0.00016255,2]
[371750096,1752416792976,1576.8,0.000237,7]
[371750101,1752416822076,586.14,0.000238,7]
[371750107,1752416843081,154.0,0.00016,2]
[371750117,1752416879379,5000.0,0.000163,2]
[371750118,1752416883587,202.13304037,0.00016238,2]
[371750119,1752416898744,1790.53968762,0.000163,2]
[371750135,1752416927639,301.99999938,0.00025,5]
[371750136,1752416967189,527.52,0.000243,7]
[371750137,1752416995122,1419.12,0.000241,7]
[371750138,1752417017778,226.34724856,0.00015943,2]
[371750246,1752417038282,-1200.0,0.00016336,2]
[371750247,1752417038292,-8269.15449907,0.00016337,2]
[371750248,1752417038302,-300.0,0.00016354,2]
[371750249,1752417038312,-300.0,0.00016354,2]
[371750250,1752417038322,-300.0,0.00016354,2]
[371750252,1752417038331,-3764.42934706,0.00016355,2]
[371750254,1752417038341,-500.0,0.00016437,2]
[371750255,1752417038350,-460.0,0.00016438,2]
[371750256,1752417038360,-460.0,0.00016438,2]
[371750257,1752417038370,-461.37576427,0.00016438,2]
[371750258,1752417038379,-460.0,0.00016438,2]
[371750259,1752417038389,-460.0,0.00016438,2]
[371750260,1752417038399,-460.0,0.00016438,2]
[371750261,1752417038408,-557.4,0.00016438,2]
[371750262,1752417038417,-460.14,0.00016438,2]